[Event "Titled Tuesday Blitz April 4 Late 2023"]
[White "Sokolovsky, Yahli"]
[Black "Urbina Perez, Juan Antonio"]
[WhiteFideId "2820242"]
[BlackFideId "2217368"]
[WhiteElo "2316"]
[BlackElo "2197"]
[Result "1/2-1/2"]
[Round "04"]
[TimeControl "180+2"]
[Date "2023.04.04"]
[WhiteClock "0:00:06"]
[BlackClock "0:00:06"]

1. b3 {[%clk 0:03:00]}  e5 {[%clk 0:02:57]} 2. Bb2 {[%clk 0:03:01]}  Nc6 {[%clk 0:02:57]} 3. e3 {[%clk 0:02:59]}  Nf6 {[%clk 0:02:58]} 4. Nf3 {[%clk 0:02:59]}  Bd6 {[%clk 0:02:56]} 5. d4 {[%clk 0:02:58]}  exd4 {[%clk 0:02:52]} 6. exd4 {[%clk 0:02:59]}  O-O {[%clk 0:02:51]} 7. Be2 {[%clk 0:02:59]}  Re8 {[%clk 0:02:50]} 8. O-O {[%clk 0:02:59]}  b6 {[%clk 0:02:39]} 9. c4 {[%clk 0:02:52]}  Ne7 {[%clk 0:02:34]} 10. d5 {[%clk 0:02:41]}  Ng6 {[%clk 0:02:33]} 11. Nc3 {[%clk 0:02:37]}  Nf4 {[%clk 0:02:22]} 12. Re1 {[%clk 0:02:31]}  Nxe2+ {[%clk 0:02:19]} 13. Rxe2 {[%clk 0:02:32]}  Bb7 {[%clk 0:02:14]} 14. Nb5 {[%clk 0:02:20]}  Bf8 {[%clk 0:01:58]} 15. Bxf6 {[%clk 0:02:16]}  Qxf6 {[%clk 0:01:53]} 16. Rxe8 {[%clk 0:02:17]}  Rxe8 {[%clk 0:01:53]} 17. Nxc7 {[%clk 0:02:15]}  Rc8 {[%clk 0:01:46]} 18. Nb5 {[%clk 0:02:15]}  a6 {[%clk 0:01:46]} 19. Nbd4 {[%clk 0:02:09]}  Bc5 {[%clk 0:01:46]} 20. a4 {[%clk 0:02:03]}  Re8 {[%clk 0:01:43]} 21. Rb1 {[%clk 0:00:49]}  a5 {[%clk 0:01:43]} 22. Qd3 {[%clk 0:00:41]}  g6 {[%clk 0:01:38]} 23. h3 {[%clk 0:00:38]}  d6 {[%clk 0:01:38]} 24. Kf1 {[%clk 0:00:25]}  Bc8 {[%clk 0:01:38]} 25. Re1 {[%clk 0:00:25]}  Rxe1+ {[%clk 0:01:37]} 26. Kxe1 {[%clk 0:00:26]}  Kg7 {[%clk 0:01:37]} 27. Qe4 {[%clk 0:00:16]}  Bd7 {[%clk 0:01:34]} 28. Ke2 {[%clk 0:00:16]}  h6 {[%clk 0:01:33]} 29. h4 {[%clk 0:00:14]}  Kf8 {[%clk 0:01:22]} 30. Kf1 {[%clk 0:00:10]}  Kg7 {[%clk 0:01:20]} 31. Kg1 {[%clk 0:00:10]}  Kf8 {[%clk 0:01:18]} 32. Kf1 {[%clk 0:00:10]}  Kg7 {[%clk 0:01:18]} 33. Ke1 {[%clk 0:00:11]}  Kf8 {[%clk 0:01:18]} 34. Kd1 {[%clk 0:00:11]}  Kg7 {[%clk 0:01:15]} 35. Kc1 {[%clk 0:00:09]}  Kf8 {[%clk 0:01:12]} 36. Kd2 {[%clk 0:00:04]}  Bb4+ {[%clk 0:01:11]} 37. Kd3 {[%clk 0:00:04]}  Bc5 {[%clk 0:01:11]} 38. Ke2 {[%clk 0:00:03]}  Kg7 {[%clk 0:01:09]} 39. h5 {[%clk 0:00:03]}  g5 {[%clk 0:00:40]} 40. g4 {[%clk 0:00:03]}  Kf8 {[%clk 0:00:34]} 41. Kf1 {[%clk 0:00:03]}  Kg7 {[%clk 0:00:28]} 42. Kg2 {[%clk 0:00:03]}  Kf8 {[%clk 0:00:28]} 43. Kg3 {[%clk 0:00:04]}  Kg7 {[%clk 0:00:29]} 44. Qd3 {[%clk 0:00:03]}  Qf4+ {[%clk 0:00:25]} 45. Kg2 {[%clk 0:00:04]}  Bxg4 {[%clk 0:00:25]} 46. Kf1 {[%clk 0:00:05]}  Bxh5 {[%clk 0:00:20]} 47. Nf5+ {[%clk 0:00:05]}  Kf8 {[%clk 0:00:21]} 48. N3d4 {[%clk 0:00:04]}  Bg6 {[%clk 0:00:16]} 49. Qe3 {[%clk 0:00:04]}  Bxf5 {[%clk 0:00:11]} 50. Qxf4 {[%clk 0:00:04]}  gxf4 {[%clk 0:00:11]} 51. Nxf5 {[%clk 0:00:05]}  h5 {[%clk 0:00:09]} 52. Kg2 {[%clk 0:00:05]}  Kg8 {[%clk 0:00:10]} 53. Kf3 {[%clk 0:00:04]}  Kh7 {[%clk 0:00:10]} 54. Nh4 {[%clk 0:00:03]}  Kg8 {[%clk 0:00:05]} 55. Ng2 {[%clk 0:00:04]}  Kg7 {[%clk 0:00:05]} 56. Nxf4 {[%clk 0:00:04]}  Kh6 {[%clk 0:00:05]} 57. Nh3 {[%clk 0:00:05]}  f6 {[%clk 0:00:04]} 58. Kf4 {[%clk 0:00:05]}  Kg6 {[%clk 0:00:05]} 59. Kg3 {[%clk 0:00:06]}  Kf5 {[%clk 0:00:05]} 60. f3 {[%clk 0:00:06]}  Be3 {[%clk 0:00:03]} 61. Kh4 {[%clk 0:00:04]}  Ke5 {[%clk 0:00:03]} 62. Kxh5 {[%clk 0:00:05]}  Kd4 {[%clk 0:00:03]} 63. Kg6 {[%clk 0:00:06]}  Kc3 {[%clk 0:00:03]} 64. f4 {[%clk 0:00:06]}  Kxb3 {[%clk 0:00:03]} 65. Kxf6 {[%clk 0:00:06]}  Kxc4 {[%clk 0:00:03]} 66. Ke6 {[%clk 0:00:06]}  b5 {[%clk 0:00:03]} 67. axb5 {[%clk 0:00:03]}  Kxb5 {[%clk 0:00:04]} 68. f5 {[%clk 0:00:03]}  Bd4 {[%clk 0:00:02]} 69. f6 {[%clk 0:00:03]}  Bxf6 {[%clk 0:00:02]} 70. Kxf6 {[%clk 0:00:04]}  a4 {[%clk 0:00:03]} 71. Ng1 {[%clk 0:00:02]}  a3 {[%clk 0:00:04]} 72. Ne2 {[%clk 0:00:03]}  a2 {[%clk 0:00:04]} 73. Nc3+ {[%clk 0:00:03]}  Kc4 {[%clk 0:00:04]} 74. Nxa2 {[%clk 0:00:03]}  Kxd5 {[%clk 0:00:05]} 75. Nc3+ {[%clk 0:00:04]}  Kc4 {[%clk 0:00:06]} 76. Ne2 {[%clk 0:00:04]}  d5 {[%clk 0:00:06]} 77. Ke5 {[%clk 0:00:05]}  d4 {[%clk 0:00:06]} 78. Nxd4 {[%clk 0:00:06]} 1/2-1/2


[Site "https://www.chess.com"]

[Event "Titled Tuesday Blitz April 4 Late 2023"]
[White "Papp, Levente"]
[Black "Moral Garcia, Serafin"]
[WhiteFideId "751243"]
[BlackFideId "2201925"]
[WhiteElo "2380"]
[BlackElo "2274"]
[Result "1/2-1/2"]
[Round "04"]
[TimeControl "180+2"]
[Date "2023.04.04"]
[WhiteClock "0:00:03"]
[BlackClock "0:00:41"]

1. b3 {[%clk 0:03:00]}  e5 {[%clk 0:02:55]} 2. Bb2 {[%clk 0:03:00]}  Nc6 {[%clk 0:02:54]} 3. c4 {[%clk 0:02:56]}  Nf6 {[%clk 0:02:51]} 4. Nf3 {[%clk 0:02:56]}  e4 {[%clk 0:02:48]} 5. Nd4 {[%clk 0:02:56]}  Nxd4 {[%clk 0:02:44]} 6. Bxd4 {[%clk 0:02:55]}  c6 {[%clk 0:02:45]} 7. Nc3 {[%clk 0:02:49]}  d5 {[%clk 0:02:35]} 8. cxd5 {[%clk 0:02:41]}  cxd5 {[%clk 0:02:34]} 9. Bxf6 {[%clk 0:02:10]}  Qxf6 {[%clk 0:02:31]} 10. Nxd5 {[%clk 0:02:08]}  Qe5 {[%clk 0:02:32]} 11. Ne3 {[%clk 0:02:00]}  Be6 {[%clk 0:02:28]} 12. g3 {[%clk 0:01:56]}  Bb4 {[%clk 0:02:24]} 13. Rc1 {[%clk 0:01:27]}  Rd8 {[%clk 0:02:21]} 14. Rc2 {[%clk 0:01:27]}  O-O {[%clk 0:02:20]} 15. Bg2 {[%clk 0:01:21]}  f5 {[%clk 0:02:19]} 16. a3 {[%clk 0:00:59]}  Bxa3 {[%clk 0:02:15]} 17. Nc4 {[%clk 0:00:56]}  Bxc4 {[%clk 0:02:13]} 18. bxc4 {[%clk 0:00:51]}  f4 {[%clk 0:02:05]} 19. Qb1 {[%clk 0:00:09]}  b6 {[%clk 0:01:52]} 20. O-O {[%clk 0:00:06]}  f3 {[%clk 0:01:51]} 21. exf3 {[%clk 0:00:05]}  exf3 {[%clk 0:01:52]} 22. Bh3 {[%clk 0:00:06]}  Rd6 {[%clk 0:01:41]} 23. Qe1 {[%clk 0:00:05]}  Qh5 {[%clk 0:01:38]} 24. Be6+ {[%clk 0:00:04]}  Kh8 {[%clk 0:01:38]} 25. h3 {[%clk 0:00:01]}  Re8 {[%clk 0:01:37]} 26. Bg4 {[%clk 0:00:01]}  Qf7 {[%clk 0:01:33]} 27. Qd1 {[%clk 0:00:02]}  Rf6 {[%clk 0:01:29]} 28. Re1 {[%clk 0:00:02]}  Rf8 {[%clk 0:01:26]} 29. h4 {[%clk 0:00:02]}  Rg6 {[%clk 0:01:12]} 30. Bh3 {[%clk 0:00:02]}  Rxg3+ {[%clk 0:01:09]} 31. fxg3 {[%clk 0:00:02]}  f2+ {[%clk 0:01:10]} 32. Kh2 {[%clk 0:00:02]}  fxe1=Q {[%clk 0:01:05]} 33. Qxe1 {[%clk 0:00:02]}  Bc5 {[%clk 0:01:05]} 34. Bg2 {[%clk 0:00:02]}  Qf5 {[%clk 0:01:01]} 35. Qe4 {[%clk 0:00:02]}  Qf2 {[%clk 0:00:59]} 36. d4 {[%clk 0:00:02]}  Bxd4 {[%clk 0:00:59]} 37. Rxf2 {[%clk 0:00:02]}  Bxf2 {[%clk 0:00:59]} 38. Qb7 {[%clk 0:00:03]}  a5 {[%clk 0:00:57]} 39. Kh3 {[%clk 0:00:04]}  h6 {[%clk 0:00:56]} 40. h5 {[%clk 0:00:04]}  Bc5 {[%clk 0:00:51]} 41. Be4 {[%clk 0:00:04]}  a4 {[%clk 0:00:51]} 42. Qd7 {[%clk 0:00:04]}  a3 {[%clk 0:00:50]} 43. Qe6 {[%clk 0:00:03]}  a2 {[%clk 0:00:40]} 44. Qg6 {[%clk 0:00:03]}  Kg8 {[%clk 0:00:41]} 45. Bd5+ {[%clk 0:00:04]}  Kh8 {[%clk 0:00:41]} 46. Be4 {[%clk 0:00:05]}  Kg8 {[%clk 0:00:41]} 47. Bd5+ {[%clk 0:00:03]}  Kh8 {[%clk 0:00:41]} 48. Be4 {[%clk 0:00:03]} 1/2-1/2


[Site "https://www.chess.com"]

[Event "Titled Tuesday Blitz April 4 Late 2023"]
[White "Goroshkov, Maksym"]
[Black "Silva, Caio Henrique Angelico"]
[WhiteFideId "14142716"]
[BlackFideId "22777210"]
[WhiteElo "2322"]
[BlackElo "2096"]
[Result "1-0"]
[Round "04"]
[TimeControl "180+2"]
[Date "2023.04.04"]
[WhiteClock "0:00:36"]
[BlackClock "0:00:08"]

1. e4 {[%clk 0:03:00]}  c6 {[%clk 0:02:59]} 2. d4 {[%clk 0:03:00]}  d5 {[%clk 0:02:58]} 3. Nd2 {[%clk 0:03:00]}  dxe4 {[%clk 0:02:54]} 4. Nxe4 {[%clk 0:03:01]}  Nf6 {[%clk 0:02:55]} 5. Nxf6+ {[%clk 0:03:01]}  exf6 {[%clk 0:02:56]} 6. c3 {[%clk 0:03:01]}  Bd6 {[%clk 0:02:56]} 7. Bd3 {[%clk 0:02:59]}  O-O {[%clk 0:02:56]} 8. Nf3 {[%clk 0:03:00]}  Re8+ {[%clk 0:02:56]} 9. Be3 {[%clk 0:03:00]}  Nd7 {[%clk 0:02:55]} 10. O-O {[%clk 0:03:00]}  Nf8 {[%clk 0:02:55]} 11. g3 {[%clk 0:02:54]}  Qc7 {[%clk 0:02:44]} 12. Re1 {[%clk 0:02:54]}  Bg4 {[%clk 0:02:41]} 13. Bf1 {[%clk 0:02:50]}  h5 {[%clk 0:02:39]} 14. h3 {[%clk 0:02:47]}  Bf5 {[%clk 0:02:38]} 15. Bg2 {[%clk 0:02:45]}  Be4 {[%clk 0:02:30]} 16. Nh4 {[%clk 0:02:40]}  Bxg2 {[%clk 0:02:30]} 17. Kxg2 {[%clk 0:02:40]}  Qd7 {[%clk 0:02:20]} 18. Qxh5 {[%clk 0:02:38]}  Re4 {[%clk 0:02:07]} 19. Qf5 {[%clk 0:02:11]}  Qe7 {[%clk 0:02:04]} 20. Bd2 {[%clk 0:02:08]}  Rxe1 {[%clk 0:01:34]} 21. Rxe1 {[%clk 0:02:09]}  Qc7 {[%clk 0:01:33]} 22. Qg4 {[%clk 0:02:06]}  Ne6 {[%clk 0:01:26]} 23. Nf5 {[%clk 0:01:43]}  Kf8 {[%clk 0:01:25]} 24. c4 {[%clk 0:01:33]}  Rd8 {[%clk 0:01:15]} 25. d5 {[%clk 0:01:32]}  cxd5 {[%clk 0:01:06]} 26. cxd5 {[%clk 0:01:33]}  Ng5 {[%clk 0:01:07]} 27. Bxg5 {[%clk 0:01:28]}  fxg5 {[%clk 0:01:08]} 28. Qxg5 {[%clk 0:01:28]}  f6 {[%clk 0:01:08]} 29. Qh5 {[%clk 0:01:23]}  Kg8 {[%clk 0:01:06]} 30. Re8+ {[%clk 0:01:18]}  Rxe8 {[%clk 0:01:05]} 31. Qxe8+ {[%clk 0:01:19]}  Kh7 {[%clk 0:01:05]} 32. Qe4 {[%clk 0:01:14]}  Kh8 {[%clk 0:01:06]} 33. Qe6 {[%clk 0:01:03]}  Be5 {[%clk 0:00:55]} 34. h4 {[%clk 0:00:59]}  Qc2 {[%clk 0:00:48]} 35. Qe8+ {[%clk 0:00:58]}  Kh7 {[%clk 0:00:48]} 36. Qh5+ {[%clk 0:00:59]}  Kg8 {[%clk 0:00:46]} 37. Ne7+ {[%clk 0:00:59]}  Kf8 {[%clk 0:00:44]} 38. Ng6+ {[%clk 0:00:59]}  Kg8 {[%clk 0:00:41]} 39. Nxe5 {[%clk 0:00:59]}  fxe5 {[%clk 0:00:41]} 40. Qe8+ {[%clk 0:00:57]}  Kh7 {[%clk 0:00:41]} 41. Qxe5 {[%clk 0:00:58]}  Qd3 {[%clk 0:00:38]} 42. d6 {[%clk 0:00:57]}  Kh8 {[%clk 0:00:36]} 43. Qe8+ {[%clk 0:00:55]}  Kh7 {[%clk 0:00:36]} 44. d7 {[%clk 0:00:46]}  Qd5+ {[%clk 0:00:36]} 45. Kh2 {[%clk 0:00:45]}  Qf3 {[%clk 0:00:27]} 46. Kg1 {[%clk 0:00:41]}  Qd1+ {[%clk 0:00:22]} 47. Kg2 {[%clk 0:00:42]}  Qd5+ {[%clk 0:00:22]} 48. f3 {[%clk 0:00:39]}  Qd2+ {[%clk 0:00:22]} 49. Kh3 {[%clk 0:00:40]}  Qd1 {[%clk 0:00:08]} 50. d8=Q {[%clk 0:00:39]}  Qxf3 {[%clk 0:00:08]} 51. Qg8+ {[%clk 0:00:36]}  Kh6 {[%clk 0:00:08]} 52. Qg5# {[%clk 0:00:36]} 1-0


[Site "https://www.chess.com"]

[Event "Titled Tuesday Blitz April 4 Late 2023"]
[White "Kovalevsky, Stanislav"]
[Black "Mendez Fortes, Eduardo Jesus"]
[WhiteFideId "13508598"]
[BlackFideId "3502376"]
[WhiteElo "2174"]
[BlackElo "2307"]
[Result "0-1"]
[Round "04"]
[TimeControl "180+2"]
[Date "2023.04.04"]
[WhiteClock "0:00:07"]
[BlackClock "0:00:24"]

1. c4 {[%clk 0:02:59]}  e6 {[%clk 0:03:00]} 2. Nc3 {[%clk 0:02:59]}  d5 {[%clk 0:02:59]} 3. cxd5 {[%clk 0:03:00]}  exd5 {[%clk 0:03:00]} 4. d4 {[%clk 0:03:01]}  Nf6 {[%clk 0:02:59]} 5. g3 {[%clk 0:03:02]}  c6 {[%clk 0:02:59]} 6. Bg2 {[%clk 0:03:02]}  Be7 {[%clk 0:02:59]} 7. Nf3 {[%clk 0:03:03]}  O-O {[%clk 0:03:00]} 8. O-O {[%clk 0:03:03]}  Bf5 {[%clk 0:03:01]} 9. Ne5 {[%clk 0:03:03]}  Nbd7 {[%clk 0:02:59]} 10. f4 {[%clk 0:03:03]}  Nb6 {[%clk 0:02:59]} 11. h3 {[%clk 0:03:03]}  Ne4 {[%clk 0:02:56]} 12. g4 {[%clk 0:03:02]}  Nxc3 {[%clk 0:02:55]} 13. bxc3 {[%clk 0:03:01]}  Bc8 {[%clk 0:02:55]} 14. e4 {[%clk 0:03:00]}  f6 {[%clk 0:02:49]} 15. Nd3 {[%clk 0:02:54]}  dxe4 {[%clk 0:02:48]} 16. Bxe4 {[%clk 0:02:54]}  f5 {[%clk 0:02:48]} 17. Bg2 {[%clk 0:02:49]}  Be6 {[%clk 0:02:38]} 18. Re1 {[%clk 0:02:33]}  Bd5 {[%clk 0:02:32]} 19. Re5 {[%clk 0:02:17]}  Bd6 {[%clk 0:02:29]} 20. Rxf5 {[%clk 0:02:14]}  Rxf5 {[%clk 0:02:28]} 21. gxf5 {[%clk 0:02:15]}  Qf6 {[%clk 0:02:19]} 22. Qg4 {[%clk 0:02:11]}  Rf8 {[%clk 0:02:10]} 23. a4 {[%clk 0:02:00]}  Qxf5 {[%clk 0:02:05]} 24. Qxf5 {[%clk 0:02:00]}  Rxf5 {[%clk 0:02:06]} 25. a5 {[%clk 0:02:00]}  Nc8 {[%clk 0:01:56]} 26. Rb1 {[%clk 0:01:46]}  b6 {[%clk 0:01:52]} 27. axb6 {[%clk 0:01:44]}  axb6 {[%clk 0:01:53]} 28. Ra1 {[%clk 0:01:44]}  Bxg2 {[%clk 0:01:48]} 29. Kxg2 {[%clk 0:01:43]}  Ra5 {[%clk 0:01:45]} 30. Bb2 {[%clk 0:01:27]}  Rxa1 {[%clk 0:01:43]} 31. Bxa1 {[%clk 0:01:28]}  b5 {[%clk 0:01:44]} 32. Kf3 {[%clk 0:01:28]}  Nb6 {[%clk 0:01:41]} 33. Ke4 {[%clk 0:01:25]}  Kf7 {[%clk 0:01:36]} 34. Bb2 {[%clk 0:00:50]}  Na4 {[%clk 0:01:22]} 35. f5 {[%clk 0:00:25]}  g5 {[%clk 0:01:20]} 36. fxg6+ {[%clk 0:00:13]}  Kxg6 {[%clk 0:01:21]} 37. Ba1 {[%clk 0:00:13]}  Kf6 {[%clk 0:01:10]} 38. Nf2 {[%clk 0:00:10]}  Nb6 {[%clk 0:01:07]} 39. c4 {[%clk 0:00:07]}  Nxc4 {[%clk 0:00:47]} 40. d5+ {[%clk 0:00:08]}  Ke7 {[%clk 0:00:44]} 41. dxc6 {[%clk 0:00:07]}  Kd8 {[%clk 0:00:42]} 42. Kd5 {[%clk 0:00:07]}  Kc7 {[%clk 0:00:41]} 43. Nd3 {[%clk 0:00:07]}  Nb6+ {[%clk 0:00:36]} 44. Ke6 {[%clk 0:00:03]}  Kxc6 {[%clk 0:00:36]} 45. Kf7 {[%clk 0:00:03]}  Kd5 {[%clk 0:00:37]} 46. Kg7 {[%clk 0:00:03]}  Ke4 {[%clk 0:00:34]} 47. Ne1 {[%clk 0:00:03]}  h5 {[%clk 0:00:33]} 48. Kh6 {[%clk 0:00:03]}  h4 {[%clk 0:00:33]} 49. Kg5 {[%clk 0:00:03]}  Be7+ {[%clk 0:00:29]} 50. Bf6 {[%clk 0:00:03]}  Bc5 {[%clk 0:00:28]} 51. Kxh4 {[%clk 0:00:03]}  Bf2+ {[%clk 0:00:29]} 52. Kg4 {[%clk 0:00:03]}  Bxe1 {[%clk 0:00:29]} 53. h4 {[%clk 0:00:04]}  Nd5 {[%clk 0:00:29]} 54. Bg7 {[%clk 0:00:03]}  Ne3+ {[%clk 0:00:26]} 55. Kg5 {[%clk 0:00:02]}  Nf5 {[%clk 0:00:26]} 56. h5 {[%clk 0:00:02]}  Nxg7 {[%clk 0:00:25]} 57. h6 {[%clk 0:00:03]}  Bd2+ {[%clk 0:00:26]} 58. Kg6 {[%clk 0:00:03]}  Bxh6 {[%clk 0:00:27]} 59. Kh7 {[%clk 0:00:03]}  b4 {[%clk 0:00:27]} 60. Kg6 {[%clk 0:00:03]}  b3 {[%clk 0:00:28]} 61. Kh7 {[%clk 0:00:04]}  b2 {[%clk 0:00:29]} 62. Kg6 {[%clk 0:00:04]}  b1=Q {[%clk 0:00:30]} 63. Kh7 {[%clk 0:00:05]}  Kf4+ {[%clk 0:00:29]} 64. Kg8 {[%clk 0:00:06]}  Nf5 {[%clk 0:00:22]} 65. Kh8 {[%clk 0:00:06]}  Qb8+ {[%clk 0:00:22]} 66. Kh7 {[%clk 0:00:07]}  Qc7+ {[%clk 0:00:22]} 67. Kg6 {[%clk 0:00:07]}  Qg7+ {[%clk 0:00:23]} 68. Kh5 {[%clk 0:00:07]}  Qg5# {[%clk 0:00:24]} 0-1


[Site "https://www.chess.com"]

[Event "Titled Tuesday Blitz April 4 Late 2023"]
[White "Melikhov, Evgeny V."]
[Black "Gontcharov, Vladislav"]
[WhiteFideId "4122046"]
[BlackFideId "4123492"]
[WhiteElo "2158"]
[BlackElo "2420"]
[Result "0-1"]
[Round "04"]
[TimeControl "180+2"]
[Date "2023.04.04"]
[WhiteClock "0:00:02"]
[BlackClock "0:00:19"]

1. d4 {[%clk 0:03:00]}  Nf6 {[%clk 0:02:59]} 2. c4 {[%clk 0:03:01]}  c5 {[%clk 0:03:00]} 3. d5 {[%clk 0:03:00]}  e6 {[%clk 0:03:00]} 4. Nc3 {[%clk 0:03:00]}  exd5 {[%clk 0:03:01]} 5. cxd5 {[%clk 0:03:00]}  d6 {[%clk 0:03:01]} 6. Nf3 {[%clk 0:03:00]}  g6 {[%clk 0:03:01]} 7. h3 {[%clk 0:03:00]}  Bg7 {[%clk 0:03:00]} 8. e4 {[%clk 0:03:00]}  O-O {[%clk 0:03:00]} 9. Bd3 {[%clk 0:03:00]}  b5 {[%clk 0:03:00]} 10. Nxb5 {[%clk 0:03:00]}  Re8 {[%clk 0:02:59]} 11. O-O {[%clk 0:02:55]}  Nxe4 {[%clk 0:02:59]} 12. Re1 {[%clk 0:02:54]}  a6 {[%clk 0:02:58]} 13. Na3 {[%clk 0:02:52]}  Nf6 {[%clk 0:02:50]} 14. Rxe8+ {[%clk 0:02:50]}  Nxe8 {[%clk 0:02:44]} 15. Nc4 {[%clk 0:02:47]}  Bb7 {[%clk 0:02:43]} 16. Bf4 {[%clk 0:02:33]}  Bxd5 {[%clk 0:02:35]} 17. Be2 {[%clk 0:02:28]}  Bxc4 {[%clk 0:02:25]} 18. Bxc4 {[%clk 0:02:26]}  Ra7 {[%clk 0:02:24]} 19. Qd5 {[%clk 0:02:11]}  h6 {[%clk 0:01:51]} 20. Re1 {[%clk 0:02:05]}  Rd7 {[%clk 0:01:39]} 21. Bd3 {[%clk 0:00:40]}  Nc7 {[%clk 0:01:28]} 22. Qb3 {[%clk 0:00:29]}  d5 {[%clk 0:01:25]} 23. Qc2 {[%clk 0:00:25]}  Ne6 {[%clk 0:01:10]} 24. Be5 {[%clk 0:00:20]}  Nc6 {[%clk 0:01:05]} 25. Bxg7 {[%clk 0:00:20]}  Kxg7 {[%clk 0:01:05]} 26. Ne5 {[%clk 0:00:19]}  Ncd4 {[%clk 0:00:58]} 27. Qc3 {[%clk 0:00:12]}  Rd6 {[%clk 0:00:45]} 28. a3 {[%clk 0:00:10]}  h5 {[%clk 0:00:36]} 29. b4 {[%clk 0:00:09]}  Qc7 {[%clk 0:00:24]} 30. bxc5 {[%clk 0:00:08]}  Qxc5 {[%clk 0:00:24]} 31. Qb2 {[%clk 0:00:07]}  Rb6 {[%clk 0:00:23]} 32. Qa1 {[%clk 0:00:06]}  Rb3 {[%clk 0:00:23]} 33. Nxg6 {[%clk 0:00:02]}  Rxa3 {[%clk 0:00:19]} 0-1


[Site "https://www.chess.com"]

[Event "Titled Tuesday Blitz April 4 Late 2023"]
[White "Weetik, Vjacheslav"]
[Black "Figorito, Nick"]
[WhiteFideId "4153472"]
[BlackFideId "30923689"]
[WhiteElo "2469"]
[BlackElo "2386"]
[Result "1-0"]
[Round "04"]
[TimeControl "180+2"]
[Date "2023.04.04"]
[WhiteClock "0:00:35"]
[BlackClock "0:00:26"]

1. d4 {[%clk 0:02:55]}  Nf6 {[%clk 0:03:00]} 2. c4 {[%clk 0:02:55]}  g6 {[%clk 0:03:00]} 3. Nc3 {[%clk 0:02:54]}  d5 {[%clk 0:03:01]} 4. cxd5 {[%clk 0:02:53]}  Nxd5 {[%clk 0:03:01]} 5. e4 {[%clk 0:02:53]}  Nxc3 {[%clk 0:03:02]} 6. bxc3 {[%clk 0:02:53]}  Bg7 {[%clk 0:03:03]} 7. Bg5 {[%clk 0:02:52]}  c5 {[%clk 0:03:02]} 8. Rc1 {[%clk 0:02:52]}  cxd4 {[%clk 0:02:56]} 9. cxd4 {[%clk 0:02:52]}  O-O {[%clk 0:02:57]} 10. Nf3 {[%clk 0:02:52]}  Bg4 {[%clk 0:02:53]} 11. d5 {[%clk 0:02:52]}  Nd7 {[%clk 0:02:39]} 12. Be2 {[%clk 0:02:52]}  Qa5+ {[%clk 0:02:33]} 13. Qd2 {[%clk 0:02:46]}  Qxd2+ {[%clk 0:02:32]} 14. Nxd2 {[%clk 0:02:37]}  Bxe2 {[%clk 0:02:24]} 15. Kxe2 {[%clk 0:02:38]}  Bf6 {[%clk 0:02:12]} 16. Bxf6 {[%clk 0:02:34]}  Nxf6 {[%clk 0:02:13]} 17. Rc7 {[%clk 0:02:32]}  e6 {[%clk 0:01:47]} 18. dxe6 {[%clk 0:02:29]}  fxe6 {[%clk 0:01:48]} 19. Rxb7 {[%clk 0:02:27]}  Rf7 {[%clk 0:01:39]} 20. Rhb1 {[%clk 0:02:15]}  Raf8 {[%clk 0:01:38]} 21. f3 {[%clk 0:02:11]}  Nh5 {[%clk 0:01:32]} 22. g3 {[%clk 0:02:07]}  Ng7 {[%clk 0:01:27]} 23. Rxf7 {[%clk 0:02:02]}  Rxf7 {[%clk 0:01:24]} 24. Nc4 {[%clk 0:02:00]}  Ne8 {[%clk 0:01:09]} 25. Rb8 {[%clk 0:01:56]}  Re7 {[%clk 0:01:08]} 26. Nd6 {[%clk 0:01:54]}  Kf8 {[%clk 0:01:08]} 27. e5 {[%clk 0:01:47]}  g5 {[%clk 0:01:04]} 28. Ke3 {[%clk 0:01:40]}  h6 {[%clk 0:01:02]} 29. g4 {[%clk 0:01:40]}  a5 {[%clk 0:00:58]} 30. a4 {[%clk 0:01:40]}  Kg7 {[%clk 0:00:54]} 31. Nxe8+ {[%clk 0:01:37]}  Kg6 {[%clk 0:00:55]} 32. Nd6 {[%clk 0:01:35]}  Rc7 {[%clk 0:00:53]} 33. Rg8+ {[%clk 0:01:29]}  Kh7 {[%clk 0:00:52]} 34. Rc8 {[%clk 0:01:30]}  Rd7 {[%clk 0:00:37]} 35. Rb8 {[%clk 0:01:25]}  Kg6 {[%clk 0:00:34]} 36. Rg8+ {[%clk 0:01:18]}  Kh7 {[%clk 0:00:33]} 37. Ra8 {[%clk 0:01:18]}  Rc7 {[%clk 0:00:31]} 38. Rxa5 {[%clk 0:01:18]}  Rc2 {[%clk 0:00:30]} 39. Ra7+ {[%clk 0:01:13]}  Kg6 {[%clk 0:00:29]} 40. a5 {[%clk 0:01:00]}  Rxh2 {[%clk 0:00:28]} 41. a6 {[%clk 0:00:54]}  Ra2 {[%clk 0:00:29]} 42. Nb5 {[%clk 0:00:50]}  h5 {[%clk 0:00:28]} 43. gxh5+ {[%clk 0:00:47]}  Kxh5 {[%clk 0:00:29]} 44. Nc7 {[%clk 0:00:47]}  Ra3+ {[%clk 0:00:26]} 45. Ke2 {[%clk 0:00:47]}  Ra2+ {[%clk 0:00:27]} 46. Kd3 {[%clk 0:00:46]}  Ra3+ {[%clk 0:00:27]} 47. Kd4 {[%clk 0:00:39]}  Rxf3 {[%clk 0:00:27]} 48. Rb7 {[%clk 0:00:34]}  Ra3 {[%clk 0:00:27]} 49. a7 {[%clk 0:00:34]}  g4 {[%clk 0:00:25]} 50. a8=Q {[%clk 0:00:34]}  Rxa8 {[%clk 0:00:24]} 51. Nxa8 {[%clk 0:00:35]}  Kh4 {[%clk 0:00:23]} 52. Ke3 {[%clk 0:00:34]}  Kh3 {[%clk 0:00:23]} 53. Rh7+ {[%clk 0:00:34]}  Kg2 {[%clk 0:00:24]} 54. Re7 {[%clk 0:00:34]}  g3 {[%clk 0:00:24]} 55. Rxe6 {[%clk 0:00:34]}  Kf1 {[%clk 0:00:25]} 56. Rf6+ {[%clk 0:00:34]}  Ke1 {[%clk 0:00:25]} 57. Rg6 {[%clk 0:00:35]}  Kd1 {[%clk 0:00:23]} 58. Rxg3 {[%clk 0:00:34]}  Kc2 {[%clk 0:00:24]} 59. e6 {[%clk 0:00:34]}  Kb3 {[%clk 0:00:25]} 60. e7 {[%clk 0:00:35]}  Kc4 {[%clk 0:00:26]} 1-0


[Site "https://www.chess.com"]